[Event "*** Titled Tuesday Blitz"]
[Site "Chess.com"]
[Date "2020.05.12"]
[Round "7"]
[White "Shoytan"]
[Black "GadimbayliA"]
[Result "0-1"]
[WhiteElo "2583"]
[BlackElo "2828"]
[TimeControl "180+1"]
[EndTime "11:15:27 PDT"]
[Termination "GadimbayliA won by resignation"]

1. e4 {[%clk 0:03:00.9]} 1... e5 {[%clk 0:02:56.4]} 2. Nf3 {[%clk 0:03:00.4]}
2... d5 {[%clk 0:02:56.4]} 3. Nxe5 {[%clk 0:02:44.7]} 3... Bd6 {[%clk
0:02:51.7]} 4. d4 {[%clk 0:02:41]} 4... dxe4 {[%clk 0:02:51.6]} 5. Nc4 {[%clk
0:02:37.3]} 5... Nf6 {[%clk 0:02:50.9]} 6. Nc3 {[%clk 0:02:33.1]} 6... O-O
{[%clk 0:02:50.3]} 7. Bg5 {[%clk 0:02:29.6]} 7... Nc6 {[%clk 0:02:49.8]} 8. Be2
{[%clk 0:02:24.2]} 8... Bf5 {[%clk 0:02:48.6]} 9. Nd5 {[%clk 0:02:07.1]} 9...
Be7 {[%clk 0:02:46.1]} 10. Nxe7+ {[%clk 0:02:04.8]} 10... Qxe7 {[%clk 0:02:47]}
11. c3 {[%clk 0:02:03.8]} 11... h6 {[%clk 0:02:42.6]} 12. Bh4 {[%clk 0:02:03]}
12... Bh7 {[%clk 0:02:40.8]} 13. Qb3 {[%clk 0:01:57.7]} 13... Rab8 {[%clk
0:02:29.5]} 14. O-O {[%clk 0:01:55]} 14... Kh8 {[%clk 0:02:22.4]} 15. Ne3 {[%clk
0:01:48]} 15... g5 {[%clk 0:01:59.9]} 16. Bg3 {[%clk 0:01:46.3]} 16... Bg6
{[%clk 0:02:00.8]} 17. Rad1 {[%clk 0:01:34.8]} 17... b6 {[%clk 0:01:42.8]} 18.
c4 {[%clk 0:01:28.5]} 18... Kh7 {[%clk 0:01:33]} 19. Qc3 {[%clk 0:01:26.3]}
19... Rbd8 {[%clk 0:01:24.8]} 20. d5 {[%clk 0:01:23.6]} 20... Na5 {[%clk
0:01:24.9]} 21. Be5 {[%clk 0:01:12.7]} 21... Ng8 {[%clk 0:01:14]} 22. Bd4 {[%clk
0:00:59.1]} 22... f5 {[%clk 0:01:10.5]} 23. f4 {[%clk 0:00:55.6]} 23... exf3
{[%clk 0:00:59.9]} 24. Bxf3 {[%clk 0:00:51.1]} 24... g4 {[%clk 0:00:48.7]} 25.
Be2 {[%clk 0:00:35]} 25... f4 {[%clk 0:00:49]} 26. Nxg4 {[%clk 0:00:27.3]} 26...
Qxe2 {[%clk 0:00:48.8]} 27. Rde1 {[%clk 0:00:25.6]} 27... Qxg4 {[%clk
0:00:45.9]} 0-1

[Event "*** Titled Tuesday Blitz"]
[Site "Chess.com"]
[Date "2020.05.12"]
[Round "7"]
[White "AniJak"]
[Black "ZeZacarias"]
[Result "0-1"]
[WhiteElo "2200"]
[BlackElo "2060"]
[TimeControl "180+1"]
[EndTime "11:15:28 PDT"]
[Termination "ZeZacarias won by resignation"]

1. e4 {[%clk 0:03:00.9]} 1... e6 {[%clk 0:02:59.7]} 2. d4 {[%clk 0:03:00.4]}
2... d5 {[%clk 0:02:59.2]} 3. Nd2 {[%clk 0:02:59.7]} 3... c5 {[%clk 0:02:57.7]}
4. exd5 {[%clk 0:02:58.7]} 4... Qxd5 {[%clk 0:02:58.4]} 5. Ngf3 {[%clk
0:02:56.7]} 5... cxd4 {[%clk 0:02:57.6]} 6. Bc4 {[%clk 0:02:56.6]} 6... Qd6
{[%clk 0:02:56.8]} 7. O-O {[%clk 0:02:56.1]} 7... Nf6 {[%clk 0:02:56.3]} 8. Nb3
{[%clk 0:02:53.2]} 8... Nc6 {[%clk 0:02:56.6]} 9. Nfxd4 {[%clk 0:02:48.8]} 9...
Nxd4 {[%clk 0:02:57.5]} 10. Nxd4 {[%clk 0:02:48.8]} 10... a6 {[%clk 0:02:57.2]}
11. c3 {[%clk 0:02:47.9]} 11... Qc7 {[%clk 0:02:53.5]} 12. Bb3 {[%clk
0:02:46.4]} 12... Be7 {[%clk 0:02:45.1]} 13. h3 {[%clk 0:02:46.2]} 13... O-O
{[%clk 0:02:44.8]} 14. Qf3 {[%clk 0:02:45.9]} 14... b5 {[%clk 0:02:16.8]} 15.
Qxa8 {[%clk 0:02:40.4]} 15... Bb7 {[%clk 0:02:16.8]} 16. Qxf8+ {[%clk
0:02:21.6]} 16... Bxf8 {[%clk 0:02:14.3]} 17. Bg5 {[%clk 0:02:10.1]} 17... Nd5
{[%clk 0:02:13.7]} 18. Bh4 {[%clk 0:02:05.9]} 18... Bd6 {[%clk 0:02:07]} 19. Kh1
{[%clk 0:01:51.5]} 19... h6 {[%clk 0:02:06.5]} 20. f3 {[%clk 0:01:49.4]} 20...
Bg3 {[%clk 0:01:31.5]} 21. Bxg3 {[%clk 0:01:39]} 21... Qxg3 {[%clk 0:01:32.4]}
22. Bxd5 {[%clk 0:01:33.5]} 22... Bxd5 {[%clk 0:01:31.6]} 23. a4 {[%clk
0:01:26.4]} 23... g5 {[%clk 0:01:23.4]} 24. axb5 {[%clk 0:01:24.5]} 24... axb5
{[%clk 0:01:23.3]} 25. Rfe1 {[%clk 0:01:16.8]} 25... h5 {[%clk 0:01:08.8]} 26.
Re3 {[%clk 0:00:46.3]} 26... g4 {[%clk 0:01:05.1]} 27. hxg4 {[%clk 0:00:45.2]}
27... hxg4 {[%clk 0:01:04.7]} 28. Rae1 {[%clk 0:00:42.4]} 28... Qh4+ {[%clk
0:00:54.7]} 29. Kg1 {[%clk 0:00:41.1]} 29... g3 {[%clk 0:00:54.4]} 30. Kf1
{[%clk 0:00:26.5]} 30... Bc4+ {[%clk 0:00:53.3]} 0-1

[Event "*** Titled Tuesday Blitz"]
[Site "Chess.com"]
[Date "2020.05.12"]
[Round "7"]
[White "checkmatequen"]
[Black "Andrei_Belozerov"]
[Result "0-1"]
[WhiteElo "2276"]
[BlackElo "2601"]
[TimeControl "180+1"]
[EndTime "11:15:30 PDT"]
[Termination "Andrei_Belozerov won by resignation"]

1. e4 {[%clk 0:03:00.9]} 1... c5 {[%clk 0:02:59.2]} 2. Nf3 {[%clk 0:03:00.4]}
2... d6 {[%clk 0:02:59.4]} 3. d4 {[%clk 0:03:00.6]} 3... cxd4 {[%clk 0:02:59.8]}
4. Nxd4 {[%clk 0:03:01.5]} 4... Nf6 {[%clk 0:03:00.2]} 5. Nc3 {[%clk 0:03:01.7]}
5... a6 {[%clk 0:03:00.7]} 6. Bg5 {[%clk 0:03:02]} 6... e6 {[%clk 0:03:00.5]} 7.
f4 {[%clk 0:03:02.3]} 7... Be7 {[%clk 0:02:59.9]} 8. Qf3 {[%clk 0:03:02]} 8...
Qc7 {[%clk 0:03:00.1]} 9. O-O-O {[%clk 0:03:01.8]} 9... Nbd7 {[%clk 0:03:00.7]}
10. g4 {[%clk 0:02:55.5]} 10... b5 {[%clk 0:02:48.9]} 11. Bxf6 {[%clk
0:02:51.5]} 11... Nxf6 {[%clk 0:02:48.9]} 12. g5 {[%clk 0:02:51.8]} 12... Nd7
{[%clk 0:02:49]} 13. f5 {[%clk 0:02:50]} 13... O-O {[%clk 0:02:49]} 14. Bh3
{[%clk 0:02:28.3]} 14... Nc5 {[%clk 0:02:11.2]} 15. f6 {[%clk 0:02:18.4]} 15...
Bd8 {[%clk 0:02:11.3]} 16. fxg7 {[%clk 0:01:38.8]} 16... Kxg7 {[%clk 0:02:10.6]}
17. Qh5 {[%clk 0:01:37.7]} 17... b4 {[%clk 0:02:08.1]} 18. Nd5 {[%clk
0:01:08.3]} 18... exd5 {[%clk 0:01:59]} 19. Qh6+ {[%clk 0:01:06]} 19... Kg8
{[%clk 0:01:56.5]} 20. Nf5 {[%clk 0:00:32.3]} 20... Ne6 {[%clk 0:01:46.8]} 21.
Rhg1 {[%clk 0:00:22.6]} 21... dxe4 {[%clk 0:01:28.3]} 22. Rxd6 {[%clk
0:00:21.4]} 22... Ra7 {[%clk 0:01:23.6]} 23. g6 {[%clk 0:00:08.3]} 23... fxg6
{[%clk 0:01:22.1]} 24. Rxg6+ {[%clk 0:00:08.4]} 24... hxg6 {[%clk 0:01:21.8]}
25. Qxg6+ {[%clk 0:00:08.7]} 25... Kh8 {[%clk 0:01:16.4]} 26. Rxe6 {[%clk
0:00:08.5]} 26... Qf4+ {[%clk 0:01:02]} 27. Kb1 {[%clk 0:00:06.8]} 27... Bxe6
{[%clk 0:01:01.6]} 28. Qg7+ {[%clk 0:00:05.3]} 28... Rxg7 {[%clk 0:01:00.4]} 0-1

[Event "*** Titled Tuesday Blitz"]
[Site "Chess.com"]
[Date "2020.05.12"]
[Round "7"]
[White "ZarinaShafigullina"]
[Black "bilelou"]
[Result "1-0"]
[WhiteElo "2340"]
[BlackElo "2496"]
[TimeControl "180+1"]
[EndTime "11:15:31 PDT"]
[Termination "ZarinaShafigullina won on time"]

1. d4 {[%clk 0:03:00.9]} 1... e6 {[%clk 0:02:47.6]} 2. Nf3 {[%clk 0:03:01.8]}
2... Nf6 {[%clk 0:02:46.1]} 3. g3 {[%clk 0:03:02]} 3... d5 {[%clk 0:02:45.9]} 4.
Bg2 {[%clk 0:03:02]} 4... b5 {[%clk 0:02:44.9]} 5. O-O {[%clk 0:03:02.9]} 5...
Bb7 {[%clk 0:02:44.9]} 6. Qd3 {[%clk 0:03:01]} 6... a6 {[%clk 0:02:44.4]} 7. a4
{[%clk 0:03:01.7]} 7... b4 {[%clk 0:02:44.3]} 8. Bg5 {[%clk 0:03:01.7]} 8...
Nbd7 {[%clk 0:02:44]} 9. c4 {[%clk 0:03:01.2]} 9... dxc4 {[%clk 0:02:38.6]} 10.
Qxc4 {[%clk 0:03:01.1]} 10... a5 {[%clk 0:02:39]} 11. Ne5 {[%clk 0:02:55.6]}
11... Bxg2 {[%clk 0:02:35.1]} 12. Kxg2 {[%clk 0:02:55.4]} 12... Nxe5 {[%clk
0:02:29.2]} 13. dxe5 {[%clk 0:02:54.4]} 13... Qd5+ {[%clk 0:02:29.8]} 14. Qxd5
{[%clk 0:02:54.9]} 14... Nxd5 {[%clk 0:02:30]} 15. e4 {[%clk 0:02:47.6]} 15...
Nb6 {[%clk 0:02:21.3]} 16. Rc1 {[%clk 0:02:48.2]} 16... c5 {[%clk 0:02:17]} 17.
Be3 {[%clk 0:02:48.7]} 17... Rc8 {[%clk 0:02:16.4]} 18. Nd2 {[%clk 0:02:49]}
18... Be7 {[%clk 0:02:12.8]} 19. Nc4 {[%clk 0:02:48.9]} 19... Nxc4 {[%clk
0:02:13.1]} 20. Rxc4 {[%clk 0:02:48.8]} 20... Rc6 {[%clk 0:01:51.1]} 21. Rac1
{[%clk 0:02:48.4]} 21... O-O {[%clk 0:01:49.8]} 22. Rd1 {[%clk 0:02:40.8]} 22...
Rfc8 {[%clk 0:01:42.4]} 23. Rd7 {[%clk 0:02:41]} 23... R8c7 {[%clk 0:01:41.1]}
24. Rxc7 {[%clk 0:02:38.1]} 24... Rxc7 {[%clk 0:01:42]} 25. b3 {[%clk
0:02:37.3]} 25... h5 {[%clk 0:01:03.9]} 26. h4 {[%clk 0:02:36.3]} 26... Kf8
{[%clk 0:00:56.9]} 27. Kh3 {[%clk 0:02:35.3]} 27... Ke8 {[%clk 0:00:46.8]} 28.
g4 {[%clk 0:02:35.6]} 28... hxg4+ {[%clk 0:00:45.3]} 29. Kxg4 {[%clk 0:02:35.5]}
29... Rd7 {[%clk 0:00:44.7]} 30. h5 {[%clk 0:02:07.8]} 30... Rd3 {[%clk
0:00:41.6]} 31. Bxc5 {[%clk 0:02:07.5]} 31... Rc3 {[%clk 0:00:33]} 32. Bd4
{[%clk 0:01:43.1]} 32... Rxc4 {[%clk 0:00:13]} 33. bxc4 {[%clk 0:01:43]} 33...
Kd7 {[%clk 0:00:13]} 34. f4 {[%clk 0:01:40.7]} 34... Kc6 {[%clk 0:00:13]} 35. f5
{[%clk 0:01:40.6]} 35... Bf8 {[%clk 0:00:04.9]} 36. Kg5 {[%clk 0:01:38.1]} 36...
b3 {[%clk 0:00:04.3]} 37. f6 {[%clk 0:01:33.6]} 37... Kd7 {[%clk 0:00:03.3]} 38.
Bc3 {[%clk 0:01:29.1]} 1-0

[Event "*** Titled Tuesday Blitz"]
[Site "Chess.com"]
[Date "2020.05.12"]
[Round "7"]
[White "Playgood28"]
[Black "Mikedannnn"]
[Result "0-1"]
[WhiteElo "2255"]
[BlackElo "2468"]
[TimeControl "180+1"]
[EndTime "11:15:31 PDT"]
[Termination "Mikedannnn won by resignation"]

1. d4 {[%clk 0:03:00.9]} 1... c5 {[%clk 0:02:58.8]} 2. d5 {[%clk 0:02:59.8]}
2... g6 {[%clk 0:02:58.5]} 3. c4 {[%clk 0:02:59.5]} 3... Bg7 {[%clk 0:02:58.9]}
4. Nc3 {[%clk 0:02:59.4]} 4... d6 {[%clk 0:02:59.5]} 5. e4 {[%clk 0:02:58.5]}
5... e6 {[%clk 0:02:59.9]} 6. Nf3 {[%clk 0:02:56.1]} 6... Ne7 {[%clk 0:03:00.1]}
7. h3 {[%clk 0:02:46.2]} 7... h6 {[%clk 0:02:51.3]} 8. Bd3 {[%clk 0:02:43.6]}
8... O-O {[%clk 0:02:48.3]} 9. O-O {[%clk 0:02:42.1]} 9... g5 {[%clk 0:02:48.6]}
10. dxe6 {[%clk 0:02:35.7]} 10... Bxe6 {[%clk 0:02:46.7]} 11. Nd5 {[%clk
0:02:33.4]} 11... Ng6 {[%clk 0:02:45.4]} 12. Rb1 {[%clk 0:02:23.9]} 12... Nc6
{[%clk 0:02:42.1]} 13. a3 {[%clk 0:02:20.3]} 13... g4 {[%clk 0:02:35.7]} 14.
hxg4 {[%clk 0:02:07]} 14... Bxg4 {[%clk 0:02:34.3]} 15. Be2 {[%clk 0:02:06.6]}
15... Bxf3 {[%clk 0:02:18.6]} 16. Bxf3 {[%clk 0:02:05.7]} 16... Nd4 {[%clk
0:02:18.8]} 17. b4 {[%clk 0:02:00.9]} 17... b6 {[%clk 0:02:16.8]} 18. Bb2 {[%clk
0:01:55.4]} 18... Nh4 {[%clk 0:02:04.9]} 19. Be2 {[%clk 0:01:43.7]} 19... Qg5
{[%clk 0:01:59.1]} 20. g3 {[%clk 0:01:43.5]} 20... f5 {[%clk 0:01:59.2]} 21. Kh1
{[%clk 0:01:25.3]} 21... fxe4 {[%clk 0:01:57.9]} 22. gxh4 {[%clk 0:00:58.9]}
22... Qxh4+ {[%clk 0:01:57.7]} 23. Kg1 {[%clk 0:00:55.9]} 23... Nf3+ {[%clk
0:01:53.1]} 24. Bxf3 {[%clk 0:00:51.9]} 24... exf3 {[%clk 0:01:54]} 25. Ne7+
{[%clk 0:00:35.1]} 25... Qxe7 {[%clk 0:01:53.2]} 26. Qd5+ {[%clk 0:00:34.8]}
26... Kh8 {[%clk 0:01:53]} 27. Rfe1 {[%clk 0:00:24.8]} 27... Qh4 {[%clk
0:01:24.2]} 28. Bxg7+ {[%clk 0:00:23.1]} 28... Kxg7 {[%clk 0:01:24.4]} 29. Re6
{[%clk 0:00:15.5]} 29... Rae8 {[%clk 0:01:06.2]} 30. Qxd6 {[%clk 0:00:11.7]}
30... Qg4+ {[%clk 0:01:04]} 31. Kf1 {[%clk 0:00:11.2]} 31... Rxe6 {[%clk
0:01:02.6]} 0-1

[Event "*** Titled Tuesday Blitz"]
[Site "Chess.com"]
[Date "2020.05.12"]
[Round "7"]
[White "pedroholly22"]
[Black "Stewie_89"]
[Result "1-0"]
[WhiteElo "2466"]
[BlackElo "2608"]
[TimeControl "180+1"]
[EndTime "11:15:32 PDT"]
[Termination "pedroholly22 won by resignation"]

1. e4 {[%clk 0:03:00.9]} 1... Nf6 {[%clk 0:02:59]} 2. e5 {[%clk 0:02:59.5]} 2...
Nd5 {[%clk 0:02:58.9]} 3. d4 {[%clk 0:02:58.3]} 3... d6 {[%clk 0:02:58.7]} 4.
Nf3 {[%clk 0:02:57.9]} 4... g6 {[%clk 0:02:58.2]} 5. Be2 {[%clk 0:02:57.6]} 5...
Bg7 {[%clk 0:02:57.8]} 6. O-O {[%clk 0:02:55.3]} 6... O-O {[%clk 0:02:57.6]} 7.
b3 {[%clk 0:02:53.5]} 7... Nc6 {[%clk 0:02:36.4]} 8. c4 {[%clk 0:02:52]} 8...
Nb6 {[%clk 0:02:35.6]} 9. exd6 {[%clk 0:02:39.2]} 9... cxd6 {[%clk 0:02:34.6]}
10. Bb2 {[%clk 0:02:37.8]} 10... Bg4 {[%clk 0:02:34.4]} 11. h3 {[%clk
0:02:36.4]} 11... Bxf3 {[%clk 0:02:28.6]} 12. Bxf3 {[%clk 0:02:37.3]} 12... e5
{[%clk 0:02:28.9]} 13. Bxc6 {[%clk 0:02:35.4]} 13... bxc6 {[%clk 0:02:28.7]} 14.
Na3 {[%clk 0:02:36]} 14... e4 {[%clk 0:02:20.3]} 15. Rc1 {[%clk 0:02:27.7]}
15... f5 {[%clk 0:02:16.1]} 16. Qe2 {[%clk 0:02:14.6]} 16... d5 {[%clk
0:02:14.9]} 17. cxd5 {[%clk 0:02:14.2]} 17... cxd5 {[%clk 0:02:15.2]} 18. Nb5
{[%clk 0:02:12.6]} 18... Rf7 {[%clk 0:02:12.1]} 19. a4 {[%clk 0:02:09.3]} 19...
a6 {[%clk 0:02:06.1]} 20. Na3 {[%clk 0:02:02.5]} 20... f4 {[%clk 0:02:04.2]} 21.
Qg4 {[%clk 0:02:01.3]} 21... Qd6 {[%clk 0:01:51.5]} 22. Nc2 {[%clk 0:01:50]}
22... h5 {[%clk 0:01:47.3]} 23. Qg5 {[%clk 0:01:48.4]} 23... Rf5 {[%clk
0:01:45.2]} 24. Ba3 {[%clk 0:01:37.5]} 24... Qxa3 {[%clk 0:01:16.1]} 25. Qxg6
{[%clk 0:01:23.6]} 25... Qf8 {[%clk 0:01:15.5]} 26. Qxb6 {[%clk 0:01:22.7]}
26... Rb8 {[%clk 0:01:06.3]} 27. Qe6+ {[%clk 0:01:22.1]} 27... Qf7 {[%clk
0:01:02.1]} 28. Qxf7+ {[%clk 0:01:21]} 28... Rxf7 {[%clk 0:01:02.2]} 29. b4
{[%clk 0:01:21.2]} 29... Rc7 {[%clk 0:01:02.2]} 30. b5 {[%clk 0:01:17.6]} 30...
Rbc8 {[%clk 0:00:33.3]} 31. bxa6 {[%clk 0:01:03.3]} 31... Rxc2 {[%clk
0:00:32.5]} 32. Rxc2 {[%clk 0:01:00.3]} 32... Rxc2 {[%clk 0:00:27.2]} 33. a7
{[%clk 0:01:00.3]} 33... Rc8 {[%clk 0:00:26.9]} 34. Rb1 {[%clk 0:01:00.3]} 34...
Bxd4 {[%clk 0:00:27]} 35. Rb8 {[%clk 0:00:59.6]} 35... Bxa7 {[%clk 0:00:18.9]}
1-0

[Event "*** Titled Tuesday Blitz"]
[Site "Chess.com"]
[Date "2020.05.12"]
[Round "7"]
[White "GMJustin"]
[Black "Belka1989"]
[Result "1-0"]
[WhiteElo "2341"]
[BlackElo "2116"]
[TimeControl "180+1"]
[EndTime "11:15:35 PDT"]
[Termination "GMJustin won by resignation"]

1. d4 {[%clk 0:02:59.8]} 1... Nf6 {[%clk 0:02:57.3]} 2. c4 {[%clk 0:02:56.5]}
2... e5 {[%clk 0:02:57.6]} 3. dxe5 {[%clk 0:02:56]} 3... Ng4 {[%clk 0:02:57.5]}
4. e3 {[%clk 0:02:52]} 4... Nxe5 {[%clk 0:02:56.2]} 5. Nh3 {[%clk 0:02:51.1]}
5... d5 {[%clk 0:02:56.3]} 6. cxd5 {[%clk 0:02:43.6]} 6... Bxh3 {[%clk
0:02:55.8]} 7. gxh3 {[%clk 0:02:43.2]} 7... Bd6 {[%clk 0:02:27.5]} 8. Nc3 {[%clk
0:02:35.6]} 8... Qh4 {[%clk 0:02:12.7]} 9. Bg2 {[%clk 0:02:21]} 9... Nbd7 {[%clk
0:02:11.4]} 10. O-O {[%clk 0:02:07.5]} 10... h5 {[%clk 0:02:00.1]} 11. Nb5
{[%clk 0:01:46.8]} 11... Nf6 {[%clk 0:01:42.5]} 12. Nxd6+ {[%clk 0:01:38.8]}
12... cxd6 {[%clk 0:01:43.4]} 13. f4 {[%clk 0:01:37.3]} 13... Ned7 {[%clk
0:01:36.5]} 14. e4 {[%clk 0:01:32.6]} 14... O-O {[%clk 0:01:14.3]} 15. Bd2
{[%clk 0:01:30.1]} 15... Nh7 {[%clk 0:01:11.6]} 16. Be1 {[%clk 0:01:07.6]} 16...
Qf6 {[%clk 0:01:09.9]} 17. Qxh5 {[%clk 0:01:03.2]} 17... Qxb2 {[%clk 0:00:56.6]}
18. Bg3 {[%clk 0:01:02.5]} 18... Nhf6 {[%clk 0:00:43.1]} 19. Qf3 {[%clk
0:00:55.7]} 19... b6 {[%clk 0:00:38.2]} 20. Rab1 {[%clk 0:00:46]} 20... Qxa2
{[%clk 0:00:16.9]} 21. e5 {[%clk 0:00:43.3]} 21... Ne8 {[%clk 0:00:17.2]} 22. e6
{[%clk 0:00:39.3]} 22... fxe6 {[%clk 0:00:16.3]} 23. dxe6 {[%clk 0:00:39.4]}
23... Nc5 {[%clk 0:00:16]} 24. Qxa8 {[%clk 0:00:30.9]} 1-0

[Event "*** Titled Tuesday Blitz"]
[Site "Chess.com"]
[Date "2020.05.12"]
[Round "7"]
[White "LLRChess"]
[Black "Durarbayli"]
[Result "0-1"]
[WhiteElo "2560"]
[BlackElo "2786"]
[TimeControl "180+1"]
[EndTime "11:15:40 PDT"]
[Termination "Durarbayli won by resignation"]

1. Nf3 {[%clk 0:03:00.6]} 1... c5 {[%clk 0:02:58.6]} 2. g3 {[%clk 0:03:00.4]}
2... Nc6 {[%clk 0:02:58.3]} 3. Bg2 {[%clk 0:03:01]} 3... g6 {[%clk 0:02:58.4]}
4. O-O {[%clk 0:03:01.5]} 4... Bg7 {[%clk 0:02:58.7]} 5. d3 {[%clk 0:03:01.7]}
5... d5 {[%clk 0:02:58.1]} 6. e4 {[%clk 0:03:01.7]} 6... Nf6 {[%clk 0:02:51.5]}
7. exd5 {[%clk 0:03:01.3]} 7... Nxd5 {[%clk 0:02:51.2]} 8. Nbd2 {[%clk
0:03:01.3]} 8... O-O {[%clk 0:02:49]} 9. Nc4 {[%clk 0:03:01.2]} 9... b6 {[%clk
0:02:48]} 10. Re1 {[%clk 0:02:58.4]} 10... Bb7 {[%clk 0:02:47.7]} 11. c3 {[%clk
0:02:55.2]} 11... e6 {[%clk 0:02:44.4]} 12. Qc2 {[%clk 0:02:51.2]} 12... Qc7
{[%clk 0:02:42]} 13. a4 {[%clk 0:02:47.6]} 13... h6 {[%clk 0:02:39.8]} 14. h4
{[%clk 0:02:43.5]} 14... Rfd8 {[%clk 0:02:38.6]} 15. h5 {[%clk 0:02:37.6]} 15...
g5 {[%clk 0:02:38.2]} 16. Nh2 {[%clk 0:02:26.2]} 16... Rd7 {[%clk 0:02:33.5]}
17. Ng4 {[%clk 0:02:23.1]} 17... Rad8 {[%clk 0:02:31.4]} 18. Bf1 {[%clk
0:02:09.4]} 18... Ba8 {[%clk 0:02:25.9]} 19. Kh2 {[%clk 0:02:05.5]} 19... Nde7
{[%clk 0:02:23.9]} 20. f4 {[%clk 0:02:00.4]} 20... Qb7 {[%clk 0:02:11.8]} 21.
Bg2 {[%clk 0:01:52.5]} 21... f5 {[%clk 0:01:58]} 22. Nxh6+ {[%clk 0:01:43.2]}
22... Bxh6 {[%clk 0:01:56.7]} 23. fxg5 {[%clk 0:01:33.3]} 23... Bg7 {[%clk
0:01:46]} 24. Rxe6 {[%clk 0:01:29.8]} 24... Rxd3 {[%clk 0:01:43.6]} 25. Bf4
{[%clk 0:01:26.6]} 25... Nd5 {[%clk 0:01:18.9]} 26. h6 {[%clk 0:01:06.8]} 26...
Nxf4 {[%clk 0:01:16.4]} 27. gxf4 {[%clk 0:01:07.7]} 27... Qf7 {[%clk 0:01:14.9]}
28. Rae1 {[%clk 0:01:03]} 28... Qh5+ {[%clk 0:01:10]} 29. Kg1 {[%clk 0:01:02.8]}
29... Rg3 {[%clk 0:01:04.9]} 30. Ne3 {[%clk 0:00:57.7]} 30... Nd4 {[%clk
0:01:02.4]} 31. cxd4 {[%clk 0:00:30.9]} 31... Bxd4 {[%clk 0:01:03.3]} 32. Kf1
{[%clk 0:00:29.6]} 32... Bxg2+ {[%clk 0:00:56.2]} 0-1

[Event "*** Titled Tuesday Blitz"]
[Site "Chess.com"]
[Date "2020.05.12"]
[Round "7"]
[White "ARMQUEEN"]
[Black "SophieNikoladze"]
[Result "0-1"]
[WhiteElo "2330"]
[BlackElo "2157"]
[TimeControl "180+1"]
[EndTime "11:15:40 PDT"]
[Termination "SophieNikoladze won by checkmate"]

1. e4 {[%clk 0:03:00.9]} 1... d6 {[%clk 0:02:59.4]} 2. d4 {[%clk 0:02:59.1]}
2... Nf6 {[%clk 0:02:59.9]} 3. Nc3 {[%clk 0:02:57.1]} 3... e5 {[%clk 0:02:59.7]}
4. Nf3 {[%clk 0:02:48.8]} 4... exd4 {[%clk 0:02:58.6]} 5. Nxd4 {[%clk 0:02:48]}
5... Be7 {[%clk 0:02:59.1]} 6. Bc4 {[%clk 0:02:42.1]} 6... O-O {[%clk
0:02:58.6]} 7. O-O {[%clk 0:02:41.7]} 7... a6 {[%clk 0:02:59.1]} 8. a4 {[%clk
0:02:41.2]} 8... Nxe4 {[%clk 0:02:56.8]} 9. Nxe4 {[%clk 0:02:29.7]} 9... d5
{[%clk 0:02:56]} 10. Bd3 {[%clk 0:02:30.3]} 10... dxe4 {[%clk 0:02:55.8]} 11.
Bxe4 {[%clk 0:02:31.2]} 11... Bf6 {[%clk 0:02:55.6]} 12. Be3 {[%clk 0:02:13.4]}
12... Nd7 {[%clk 0:02:51.4]} 13. c3 {[%clk 0:01:51.4]} 13... Re8 {[%clk
0:02:50.1]} 14. Bf3 {[%clk 0:01:51.1]} 14... Ne5 {[%clk 0:02:49.8]} 15. Be2
{[%clk 0:01:45.6]} 15... c5 {[%clk 0:02:30.5]} 16. Nb3 {[%clk 0:01:38.8]} 16...
c4 {[%clk 0:02:21.2]} 17. Nd4 {[%clk 0:01:35.3]} 17... Qc7 {[%clk 0:02:16.8]}
18. Qc2 {[%clk 0:01:33.5]} 18... Bd7 {[%clk 0:02:14.5]} 19. Rad1 {[%clk
0:01:28.5]} 19... b5 {[%clk 0:02:12.6]} 20. axb5 {[%clk 0:01:22.7]} 20... axb5
{[%clk 0:02:12.6]} 21. Nf5 {[%clk 0:01:09.3]} 21... Red8 {[%clk 0:02:04.5]} 22.
Ng3 {[%clk 0:00:51.1]} 22... Ng4 {[%clk 0:01:55.7]} 23. Bd4 {[%clk 0:00:46.6]}
23... Qf4 {[%clk 0:01:27.5]} 24. Bxf6 {[%clk 0:00:45]} 24... Nxf6 {[%clk
0:01:26.2]} 25. Rd4 {[%clk 0:00:45]} 25... Qc7 {[%clk 0:01:18.5]} 26. Bf3 {[%clk
0:00:45.2]} 26... Bc6 {[%clk 0:01:15.4]} 27. Bxc6 {[%clk 0:00:39.7]} 27... Qxc6
{[%clk 0:01:14.9]} 28. Rh4 {[%clk 0:00:37.7]} 28... g6 {[%clk 0:01:11.9]} 29.
Rf4 {[%clk 0:00:36.6]} 29... Nd5 {[%clk 0:01:09.5]} 30. Rd4 {[%clk 0:00:36.7]}
30... f5 {[%clk 0:01:03]} 31. Rfd1 {[%clk 0:00:35.9]} 31... Rd7 {[%clk
0:00:59.9]} 32. h3 {[%clk 0:00:33.6]} 32... Rad8 {[%clk 0:00:59.6]} 33. h4
{[%clk 0:00:24.4]} 33... Nf4 {[%clk 0:00:57.2]} 34. Qd2 {[%clk 0:00:21.3]} 34...
Qxg2# {[%clk 0:00:55.7]} 0-1

[Event "*** Titled Tuesday Blitz"]
[Site "Chess.com"]
[Date "2020.05.12"]
[Round "7"]
[White "Logman74"]
[Black "Azatic"]
[Result "0-1"]
[WhiteElo "2377"]
[BlackElo "2572"]
[TimeControl "180+1"]
[EndTime "11:15:44 PDT"]
[Termination "Azatic won on time"]

1. e4 {[%clk 0:03:00.9]} 1... c5 {[%clk 0:03:00]} 2. Nf3 {[%clk 0:02:59.6]} 2...
e6 {[%clk 0:03:00.4]} 3. d4 {[%clk 0:02:58.6]} 3... cxd4 {[%clk 0:03:01.3]} 4.
Nxd4 {[%clk 0:02:59]} 4... a6 {[%clk 0:03:01.8]} 5. Bd3 {[%clk 0:02:58.3]} 5...
Qc7 {[%clk 0:03:01.6]} 6. O-O {[%clk 0:02:56.9]} 6... Nf6 {[%clk 0:03:01.9]} 7.
Nc3 {[%clk 0:02:55.1]} 7... Be7 {[%clk 0:03:01.5]} 8. Be3 {[%clk 0:02:52.6]}
8... b5 {[%clk 0:03:01.1]} 9. f4 {[%clk 0:02:50.5]} 9... d6 {[%clk 0:03:01.1]}
10. a3 {[%clk 0:02:49.4]} 10... Bb7 {[%clk 0:03:00.8]} 11. Qf3 {[%clk
0:02:49.2]} 11... Nbd7 {[%clk 0:03:00.3]} 12. Qh3 {[%clk 0:02:48.7]} 12... Nc5
{[%clk 0:02:57.4]} 13. Rae1 {[%clk 0:02:15.1]} 13... h5 {[%clk 0:02:27.2]} 14.
Kh1 {[%clk 0:01:34.4]} 14... Ncxe4 {[%clk 0:02:14.8]} 15. Nxe4 {[%clk
0:01:33.2]} 15... Nxe4 {[%clk 0:02:15.7]} 16. Nxe6 {[%clk 0:01:24.4]} 16... fxe6
{[%clk 0:02:15.4]} 17. Qxe6 {[%clk 0:01:18.7]} 17... d5 {[%clk 0:01:42.9]} 18.
Qg6+ {[%clk 0:01:00.3]} 18... Kf8 {[%clk 0:01:40]} 19. Bd4 {[%clk 0:00:58]}
19... Bf6 {[%clk 0:01:27.3]} 20. Rxe4 {[%clk 0:00:49.9]} 20... Rh6 {[%clk
0:01:13]} 21. Qf5 {[%clk 0:00:32]} 21... dxe4 {[%clk 0:01:10.8]} 22. Bxe4 {[%clk
0:00:26.7]} 22... Bxe4 {[%clk 0:00:55.7]} 23. Qxe4 {[%clk 0:00:20.7]} 23... Re8
{[%clk 0:00:51.1]} 24. Qd5 {[%clk 0:00:18.1]} 24... Bxd4 {[%clk 0:00:49.3]} 0-1